Cogmind - Beta 13 @@@ ROGUE MODE // 2024.04.20 @ 13:03:12 Player: Gabe+Kate4EVR Result: Destroyed by G-47 Trooper with Particle Gun Performance ------------- Evolutions (2) 1000 Regions Visited (5) 1000 Robots Destroyed (51) 255 Value Destroyed (1562) 1562 Prototype IDs (3) 60 Alien Tech Used (0) 0 Bonus (279) 279 TOTAL SCORE: 4156 Bonus ------- High Alert Combat Kills 79 Entered Garrisons 200 Cogmind --------- Core Integrity 0/550 Matter 251/300 Energy 96/100 System Corruption 0% Temperature Cool (27) Movement Core (50) Location -8/Garrison Parts ------- > --- POWER (1) -------- (None) > --- PROPULSION (5) --- (None) > --- UTILITY (3) ------ (None) > --- WEAPON (2) ------- Light Assault Rifle Light Assault Rifle > --- INVENTORY (5) ---- Improved Ion Engine Light Nuclear Core High-capacity Matter Pod (200) Beam Rifle Peak State ------------ > --- POWER ------------ Light Nuclear Core > --- PROPULSION ------- Flight Unit Flight Unit Flight Unit Flight Unit Flight Unit > --- UTILITY ---------- Improved Heat Sink Improved Heat Sink Small Storage Unit > --- WEAPON ----------- Beam Rifle Improved Assault Rifle > --- INVENTORY -------- Improved Ion Engine Light Nuclear Core VTOL Module VTOL Module VTOL Module High-capacity Matter Pod [Rating: 21] Favorites ----------- Power Light Ion Engine Engine Light Ion Engine Power Core Light Nuclear Core Propulsion Flight Unit Treads Light Treads Leg Aluminum Leg Flight Unit Flight Unit Utility Small Storage Unit Device Heat Sink Storage Small Storage Unit Protection Light Armor Plating Weapon Light Assault Rifle Energy Gun Medium Laser Energy Cannon Beam Cannon Ballistic Gun Light Assault Rifle Build | -11 -10 -9 -9 -8 -8 ------- Run | Yrd Mat Mat Min Mat Gar Slots Evolved 4 | . . 2 . 2 . Power . | . . . . . . Propulsion 3 | . . 2 . 1 . Utility 1 | . . . . 1 . Weapon . | . . . . . . Parts Attached 75 | 6 9 11 5 10 34 Power 9 | 1 . 1 2 2 3 Engine 8 | 1 . 1 2 2 2 Core 1 | . . . . . 1 Reactor . | . . . . . . Propulsion 37 | 2 1 5 3 5 21 Treads 1 | . . . . . 1 Leg 4 | 2 1 1 . . . Wheel . | . . . . . . Hover . | . . . . . . Flight 32 | . . 4 3 5 20 Utility 11 | 1 3 2 . 2 3 Device 4 | . . 1 . 1 2 Storage 4 | 1 2 1 . . . Processor . | . . . . . . Hackware . | . . . . . . Protection 3 | . 1 . . 1 1 Artifact . | . . . . . . Weapon 18 | 2 5 3 . 1 7 Energy Gun 9 | 1 4 2 . . 2 Energy Cannon 1 | . 1 . . . . Ballistic Gun 8 | 1 . 1 . 1 5 Ballistic Cannon . | . . . . . . Launcher . | . . . . . . Special Weapon . | . . . . . . Impact Weapon . | . . . . . . Slashing Weapon . | . . . . . . Piercing Weapon . | . . . . . . Special Melee Weapon . | . . . . . . Unidentified Prototypes 1 | . . 1 . . . Corrupted Parts 1 | . 1 . . . . System Corruption 1 | . 1 . . . . Parts Lost 35 | . 3 2 2 . 28 Power 3 | . 1 . . . 2 Propulsion 20 | . . 1 2 . 17 Utility 5 | . 1 . . . 4 Weapon 7 | . 1 1 . . 5 Highest Loss Streak 14 | . 3 2 2 . 14 To Critical Strikes . | . . . . . . Average Slot Usage (%) 71 | . 76 56 97 94 66 Engine 6 | . 7 2 11 9 6 Leg 6 | . 23 8 . . . Flight 21 | . . 8 41 45 28 Device 3 | . . 3 11 11 2 Storage 8 | . 14 11 11 9 3 Protection 3 | . 5 . . . 4 Energy Gun 8 | . 16 10 11 9 3 Energy Cannon 2 | . 2 10 . . . Ballistic Gun 9 | . 6 . 11 9 13 Naked Turns . | . . . . . . Heaviest Build 24 | 13 22 24 19 18 19 Greatest Support 20 | 20 20 20 16 20 20 Greatest Overweight (x) 5 | . 1 5 1 1 2 Average Overweight (x) . | . . 1 . . . Largest Inventory Capacity 10 | 8 10 10 8 8 8 Average Capacity 7 | 6 9 9 8 8 6 Most Carried 10 | 3 10 10 8 8 8 Average Carried 6 | 1 7 9 7 7 5 Final Capacity 10 | 8 10 8 8 8 5 Final Carried 10 | 2 10 8 8 8 4 Class Distribution -------------------- 47% | Mutant 34% | Scavenger-Sprinter 14% | Scavenger-Mutant 3% | Sprinter Dominant Class ---------------- Mutant | -10/Materials Mutant | -9/Materials Scavenger-Sprinter | -9/Mines Scavenger-Sprinter | -8/Materials Scavenger-Sprinter | -8/Garrison Resources | -11 -10 -9 -9 -8 -8 ----------- Run | Yrd Mat Mat Min Mat Gar Matter Collected 1348 | 260 76 291 124 119 478 Remotely . | . . . . . . Salvage Created 1488 | . 251 305 246 130 556 Parts 96 | . 15 16 19 15 31 Haulers Intercepted 1 | . 1 . . . . Recyclers Shooed 2 | . . . 2 . . Parts Field Recycled . | . . . . . . Retrieved Matter . | . . . . . . Parts Self-Destructed . | . . . . . . Prevented . | . . . . . . Kills | -11 -10 -9 -9 -8 -8 ------- Run | Yrd Mat Mat Min Mat Gar Combat Hostiles Destroyed 42 | . 4 5 7 6 20 Guns 39 | . 4 2 7 6 20 Cannons 3 | . . 3 . . . Classes Destroyed 8 | . 4 2 2 . . Worker 3 | . 1 1 . 1 . Builder 1 | . 1 . . . . Hauler 1 | . 1 . . . . Recycler 3 | . . . 3 . . Watcher 1 | . . 1 . . . Swarmer 22 | . . . 7 4 11 Grunt 12 | . 4 2 . . 6 Sentry 8 | . . 3 . 2 3 Best Kill Streak 7 | . 3 4 4 4 7 Combat Bots Only 7 | . 2 4 4 4 7 Max Kills in Single Turn 2 | . 1 1 1 1 2 Gunslinging . | . . . . . . Exploded . | . . . . . . Melee . | . . . . . . Uniques/NPCs Destroyed . | . . . . . . Combat | -11 -10 -9 -9 -8 -8 -------- Run | Yrd Mat Mat Min Mat Gar Hostile Shots Fired 371 | . 50 44 38 28 211 Missed 99 | . 11 13 10 11 54 Damage Taken 3206 | . 529 441 232 177 1827 Core 799 | . 95 141 9 31 523 Absorbed by Shields 111 | . . . . . 111 Core Remaining (%) 74 | 100 62 . 62 . . Volleys Fired 169 | . 37 20 18 13 81 Largest 2 | . 2 2 2 2 2 Hottest 115 | . 115 110 88 88 88 Shots Fired 291 | . 59 34 36 24 138 Gun 271 | . 59 14 36 24 138 Cannon 20 | . . 20 . . . Launcher . | . . . . . . Special . | . . . . . . Kinetic 141 | . 11 . 18 13 99 Thermal 143 | . 41 34 18 11 39 Explosive . | . . . . . . Electromagnetic 7 | . 7 . . . . Robot Hit Streak 17 | . 11 9 8 9 17 Robot Miss Streak 9 | . 3 3 5 3 9 Penetration Max . | . . . . . . Secondary Targets 9 | . . . 3 2 4 Max Gunslinging Chain 1 | . . . 1 1 1 Shots Hit Robots 208 | . 43 24 27 18 96 Core Hits 130 | . 16 12 26 20 56 Critical Kills 1 | . . . 1 . . Critical Parts Destroyed 1 | . 1 . . . . Critical Strikes 4 | . 2 . 1 . 1 Burn 2 | . 1 . . . 1 Destroy 2 | . 1 . 1 . . Melee Attacks . | . . . . . . Impact . | . . . . . . Slashing . | . . . . . . Piercing . | . . . . . . Sneak Attacks . | . . . . . . Combat Hostiles . | . . . . . . Follow-up Attacks . | . . . . . . Damage Inflicted 2696 | . 512 408 335 243 1198 Guns 2396 | . 512 108 335 243 1198 Cannons 300 | . . 300 . . . Explosions . | . . . . . . Melee . | . . . . . . Ramming . | . . . . . . Kinetic 1166 | . 76 . 150 99 841 Thermal 1462 | . 368 408 185 144 357 Explosive . | . . . . . . Electromagnetic 68 | . 68 . . . . Impact . | . . . . . . Slashing . | . . . . . . Piercing . | . . . . . . Highest Corruption 1 | . 1 . . . . Average Corruption 1 | . 1 . . . . Corruption Purged . | . . . . . . Corruption Blocked . | . . . . . . Effects 2 | . 2 . . . . Matter Fused 2 | . 2 . . . . Overload Shots . | . . . . . . Overflow Damage . | . . . . . . Projectiles . | . . . . . . Explosions . | . . . . . . Melee . | . . . . . . Knockbacks . | . . . . . . Impact . | . . . . . . Kinetic . | . . . . . . Secondary . | . . . . . . Self-Inflicted Damage . | . . . . . . Shots . | . . . . . . Rammed . | . . . . . . Targets Rammed 1 | . . 1 . . . Kicked 1 | . . 1 . . . Crushed . | . . . . . . Highest Temperature 417 | . 308 146 18 28 417 Average Temperature 90 | . 112 45 7 13 111 Received Heat Transfer 1170 | . 309 159 . 63 639 Effects 6 | . 3 . . . 3 Shutdowns 1 | . . . . . 1 Energy Bleed 1 | . 1 . . . . Interference 2 | . 2 . . . . Damage (minor) 2 | . . . . . 2 Siege Activations . | . . . . . . Robots Corrupted . | . . . . . . Combat Hostiles . | . . . . . . Parts Fried . | . . . . . . Impact Corruptions . | . . . . . . Robots Melted . | . . . . . . Combat Hostiles . | . . . . . . Parts Melted 5 | . 1 3 . . 1 Heat Transferred 3188 | . 1076 902 245 185 780 Parts Sabotaged . | . . . . . . Parts Stolen . | . . . . . . Parts Stripped . | . . . . . . Power Chain Reactions . | . . . . . . Alert | -11 -10 -9 -9 -8 -8 ------- Run | Yrd Mat Mat Min Mat Gar Peak Influence 555 | . 118 193 245 281 555 Initial 185 | . . . 75 95 185 Average 241 | . 50 78 184 192 442 Maximum Alert Level 2 | . . . 1 1 2 Low Security (%) 51 | 100 100 100 54 58 2 Level 1 14 | . . . 45 41 18 Level 2 33 | . . . . . 79 Level 3 . | . . . . . . Level 4 . | . . . . . . Level 5 . | . . . . . . High Security . | . . . . . . Max Security . | . . . . . . Squads Dispatched . | . . . . . . Investigation . | . . . . . . Extermination . | . . . . . . Reinforcement . | . . . . . . Assault . | . . . . . . Garrison . | . . . . . . Intercept . | . . . . . . Searches Triggered . | . . . . . . Construction Impeded . | . . . . . . Haulers Reinforced . | . . . . . . Active Scanning Responses . | . . . . . . Cargo Convoy Interrupts . | . . . . . . Stealth | -11 -10 -9 -9 -8 -8 --------- Run | Yrd Mat Mat Min Mat Gar Distress Signals 2 | . 2 . . . . Communications Jammed . | . . . . . . Distress Signals . | . . . . . . Times Spotted 53 | . 9 8 6 6 24 Peak Tracking Total 7 | . 4 5 4 4 7 Tactical Retreats 2 | . 1 . . . 1 Traps | -11 -10 -9 -9 -8 -8 ------- Run | Yrd Mat Mat Min Mat Gar Traps Triggered 8 | . . . . . 8 Indirectly . | . . . . . . Trap Hack Attempts . | . . . . . . Triggered . | . . . . . . Disarmed . | . . . . . . Reprogrammed . | . . . . . . Reused . | . . . . . . Traps Extracted . | . . . . . . Installed . | . . . . . . Triggered . | . . . . . . Machines | -11 -10 -9 -9 -8 -8 ---------- Run | Yrd Mat Mat Min Mat Gar Machines Disabled 3 | . . . 1 . 2 Max in Single Turn 1 | . . . 1 . 1 Garrison Relay 2 | . . . . . 2 Machines Repaired . | . . . . . . Machines Dismantled . | . . . . . . Machines Sabotaged . | . . . . . . Overloaded Fab Kills . | . . . . . . Hacking | -11 -10 -9 -9 -8 -8 --------- Run | Yrd Mat Mat Min Mat Gar Machines Accessed 4 | . 1 1 . 1 1 Terminals 2 | . . 1 . . 1 Fabricators . | . . . . . . Repair Stations . | . . . . . . Recycling Units 1 | . 1 . . . . Scanalyzers . | . . . . . . Garrison Access 1 | . . . . 1 . Total Hacks 6 | . 1 2 . 1 2 Successful 4 | . 1 1 . 1 1 Failed 2 | . . 1 . . 1 Catastrophic 1 | . . 1 . . . Database Lockouts . | . . . . . . Manual 2 | . . 2 . . . Terminals 4 | . . 2 . . 2 Fabricators . | . . . . . . Repair Stations . | . . . . . . Recycling Units 1 | . 1 . . . . Scanalyzers . | . . . . . . Garrison Access 1 | . . . . 1 . Terminal Hacks 2 | . . 1 . . 1 Prototype ID Bank 1 | . . 1 . . . Emergency Access Points 1 | . . . . . 1 Fabricator Hacks . | . . . . . . Repair Station Hacks . | . . . . . . Recycling Unit Hacks 1 | . 1 . . . . Report Inventory 1 | . 1 . . . . Scanalyzer . | . . . . . . Garrison Access Hacks 1 | . . . . 1 . Unlock Access 1 | . . . . 1 . Unauthorized Hacks . | . . . . . . Terminals . | . . . . . . Fabricators . | . . . . . . Repair Stations . | . . . . . . Recycling Units . | . . . . . . Scanalyzers . | . . . . . . Garrison Access . | . . . . . . Data Cores Recovered . | . . . . . . Used . | . . . . . . Hacking Detections 3 | . 1 1 . . 1 Full Trace Events . | . . . . . . Feedback Events . | . . . . . . Feedback Blocked . | . . . . . . Robot Schematics Acquired . | . . . . . . Robots Built . | . . . . . . Authchips . | . . . . . . Time . | . . . . . . Total Robot Build Rating . | . . . . . . Part Schematics Acquired . | . . . . . . Parts Built . | . . . . . . Authchips . | . . . . . . Time . | . . . . . . Total Part Build Rating . | . . . . . . Parts Repaired . | . . . . . . Time . | . . . . . . Parts Recycled . | . . . . . . Recycled Matter . | . . . . . . Retrieved Matter . | . . . . . . Retrieved Components . | . . . . . . Parts Scanalyzed . | . . . . . . Part Schematics Acquired . | . . . . . . Parts Damaged . | . . . . . . Bothacking | -11 -10 -9 -9 -8 -8 ------------ Run | Yrd Mat Mat Min Mat Gar Used RIF Installer . | . . . . . . Robots Hacked . | . . . . . . Non-combat . | . . . . . . Combat . | . . . . . . Robot Hacks Applied . | . . . . . . Relay Couplers Released 10 | . . . . . 10 Machine Destruction 10 | . . . . . 10 Fabnet Peak Effective % . | . . . . . . Robots Rewired . | . . . . . . Allies Hacked . | . . . . . . Hacks Repelled . | . . . . . . Allies | -11 -10 -9 -9 -8 -8 -------- Run | Yrd Mat Mat Min Mat Gar Total Allies . | . . . . . . Largest Group . | . . . . . . Highest-Rated Group . | . . . . . . Highest-Rated Ally . | . . . . . . Total Orders . | . . . . . . Ally Attacks . | . . . . . . Total Damage . | . . . . . . Kills . | . . . . . . Allies Corrupted . | . . . . . . Allies Melted . | . . . . . . Intel | -11 -10 -9 -9 -8 -8 ------- Run | Yrd Mat Mat Min Mat Gar Robot Analysis Total . | . . . . . . Derelict Logs Recovered 1 | . . . 1 . . Drone Launches . | . . . . . . Drone Recoveries . | . . . . . . Exploration | -11 -10 -9 -9 -8 -8 ------------- Run | Yrd Mat Mat Min Mat Gar Turns Passed 1941 | 79 424 312 190 103 833 Spaces Moved 1718 | 60 198 132 386 140 802 Core 7 | 6 . . . . 1 Treads 7 | . . . . . 7 Legs 345 | 54 198 93 . . . Wheels . | . . . . . . Hover . | . . . . . . Flight 1359 | . . 39 386 140 794 Fastest Speed 26 | 50 120 106 26 26 27 Average Speed 67 | 113 156 168 30 26 49 Slowest Speed 435 | 120 190 435 112 108 220 Overloaded Moves . | . . . . . . Propulsion Burnouts . | . . . . . . Robots Hopped 19 | . . . 8 5 6 Cave-ins Triggered . | . . . . . . Exploration Rate (%) 28 | 3 33 10 61 12 52 Regions Visited 5 Branch Regions 1 Pre-discovered Areas . | . . . . . . Known Exits Taken 1 | . . . . 1 . Unknown Exits Taken 4 | 1 1 1 1 . . Scrap Searched 1 | . . . 1 . . Spaces Dug . | . . . . . . Terrain Destroyed . | . . . . . . Melee . | . . . . . . Projectile . | . . . . . . AOE . | . . . . . . Terrain Rammed . | . . . . . . Walls Destroyed . | . . . . . . Machines Disabled . | . . . . . . Actions | -11 -10 -9 -9 -8 -8 --------- Run | Yrd Mat Mat Min Mat Gar Total 2202 | 68 253 185 420 179 1097 Wait 93 | . 6 10 5 12 60 Move 1678 | 59 197 131 370 130 791 Hop 16 | . . . 7 4 5 Pick Up 20 | 3 3 4 6 2 2 Fast Attach 37 | 5 3 8 3 2 16 Attach 11 | 1 1 1 . 1 7 Detach 1 | . 1 . . . . Swap 28 | . 5 2 2 7 12 Drop 36 | . . 8 9 8 11 Fire 169 | . 37 20 18 13 81 Melee . | . . . . . . Ram . | . . . . . . Kick 1 | . . 1 . . . Crush . | . . . . . . Escape Stasis 112 | . . . . . 112 Rewire . | . . . . . . Trap . | . . . . . . Miscellaneous . | . . . . . . Route ------- -11/Scrapyard -10/Materials (discovered 2 exits: *Mat / [*Min]) -9/Materials -9/Mines -8/Materials (discovered 2 exits: Fac / Gar) -8/Garrison (discovered 2 exits: [*Mat x2]) History --------- Turn | Location | Event 5 | -11/Scrapyard | Discovered new exit (range 13) 80 | -11/Scrapyard | Entered Materials 304 | -10/Materials | Build established: Mutant 350 | -10/Materials | Lost 3 parts (1p1u1w) 394 | -10/Materials | Discovered new exit (range 15) 468 | -10/Materials | Discovered new exit (range 13) 504 | -10/Materials | Entered another Materials area 504 | -9/Materials | Evolved 2 slots: Propulsion x2 700 | -9/Materials | Discovered new exit (range 4) 816 | -9/Materials | Entered Mines 870 | -9/Mines | Learned 2 Materials zone layouts 1005 | -9/Mines | Discovered new exit (range 3) 1006 | -9/Mines | Entered Materials 1006 | -8/Materials | Evolved 2 slots: Propulsion x1, Utility x1 1007 | -8/Materials | Identified exit to Factory 1109 | -8/Materials | Identified exit to Garrison 1109 | -8/Materials | Entered Garrison 1222 | -8/Garrison | Build established: Scavenger-Sprinter 1259 | -8/Garrison | Garrison Relay disabled 1279 | -8/Garrison | Triggered checkpoint 1323 | -8/Garrison | Triggered checkpoint 1428 | -8/Garrison | Core integrity fell below 50% 1463 | -8/Garrison | Lost 14 parts (1p8n3u2w) 1472 | -8/Garrison | Destroyed 7 combat bots 1493 | -8/Garrison | Triggered checkpoint 1504 | -8/Garrison | Garrison Relay disabled 1735 | -8/Garrison | Discovered new exit (range 13) 1783 | -8/Garrison | Triggered checkpoint 1797 | -8/Garrison | Triggered checkpoint 1836 | -8/Garrison | Discovered new exit (range 15) 1934 | -8/Garrison | Core integrity fell below 20% 1942 | -8/Garrison | Destroyed by G-47 Trooper with Particle Gun Last Messages --------------- 01836_ EXIT=FOUND 01837_ Acquired Flight Unit. 01839_ Acquired 21 matter. 01839_ Dropped Flight Unit. 01841_ Acquired 15 matter. 01841_ Dropped Flight Unit. 01846_ Dropped Lgt. Ion Engine. 01863_ Flight Unit destroyed. 01880_ Acquired Flight Unit. 01884_ Dropped Flight Unit. 01891_ Flight Unit destroyed. 01907_ Lgt. Ion Engine destroyed. 01909_ Hvy. Assault Rifle destroyed. 01911_ Flight Unit destroyed. 01917_ Lgt. Armor Plating destroyed. 01925_ Flight Unit destroyed. 01941_ G-50 Soldier destroyed. 01941_ Switching to secondary target: G-47 Trooper. 01942_ Acquired 68 matter. 01942_ Critical hit (Burn: +37). Map ----- +----------------------------------------------------+ | ??????????????????### #????????????????????????? | | ????????????????????# #????????????????????????? | | ????????????????????# #????????????????????????? | | ????????????????????# #????????????????????????? | | ????????????????????# #????????????????????????? | | ????????????????????# #????????????????????????? | | ????????????????????# #????????????????????????? | | ????????????????????# #???????????????????+????? | | ????????????????????# ###?????????????????????+? | | ????????????????????# #??????????????????????? | | ????????????????????# * +??????????????????????? | | ????????????????????# = #??????????????????????? | | ????????????????????# [###??????????????????????? | | ????????????????????# [ #????????????????????????? | | ????????????????????#^^ #????????????????????????? | | ????????????????????#^^ #????????????????????????? | | ????????????????????# #????????????????????????? | | ????????????????????# #????????????????????????? | | ####????????????????# = #????????????????????????? | | #!!################## #?????????????????##+##### | | ! % % +?????????????????# | | ! ^## +?????????????????# | | #!!##+#### ######### #?????????????????# ##### | | ####???### ###?????# #?????????????????# #???? | | ???????# !#"#?????# [######????????????# +???? | | ???????+ ! #?????# =+@ g #????????????# #???? | | ???????# !!"#?????# !#### #??????####### #???? | | ???????# "#?????# #???????????#% * ## #???? | | ???????# #"#?????# ####+####++## =## ##??? | | ???????### ###?????# ^^ #### | | ?????????##+#???????# ^ | | ????????????????????+ | | ????????????????????############ ## ## #### | | ?????????????????????????????### ## ## #??? | | ?????????????????????????????# "??? | | ?????????????????????????????# "??? | | ?????????????????????????????# "??? | | ?????????????????????????????# "??? | | ?????????????????????????????### ## ## #??? | | ???????????????????????????????# ## ## #??? | | ??????????????????????+????????+ ^ #??? | | ??????????????????????+????????+ ^ +??? | | ???????????????????????????????# ^ #??? | | ???????????????????????????????# ## ## ##??? | | ???????????????????????????????# ## ## #???? | | ???????????????????????????????# ##+##### #???? | | ???????????????????????????????# #??????? #???? | | ???????????????????????????????+ +?????????#???? | | ???????????????????????????????# #?????????????? | | ???????????????????????????????# #?????????????? | +----------------------------------------------------+ Best States ------------- Heat Dissipation 59 Energy Generation 14 Energy Capacity 265 Matter Stores 300 Matter Capacity 300 Sight Range 16 Terrain Scan Density 10 Armor Coverage 150 Evasion (%) 64 Recoil Reduction 1 Item Schematics ----------------- None Robot Schematics ------------------ None Fabricated ------------ Nothing Alien Tech Used ----------------- None Achievements -------------- None Challenges ------------ None Game ------ Seed SpliceNeutronExpander Manual? 0 Play Time 00:19:55 Cumulative 106.3 hours Start 2024.04.20 @ 12:47:23 End 2024.04.20 @ 13:03:12 Sessions 1 Manual Loads 0 Difficulty Rogue Special Mode None Game No. 220 Rogue 220 Adventurer 0 Explorer 0 Win Type - Total 0 Types 0/0/0/0/0/0/0/0/0 Lore% 32 Gallery% 50 Achievement% 35 Wizard Run 0 Options --------- Layout 0 ASCII 0 Keyboard 1 Movement Numpad Keybinds 0 Fullscreen 2 Font 18/X11 Map View 76x50 Zoom Use 0% Tactical HUD 1 Map Filters NONE Filters NONE Steam 1 RUN: b647193e-4bec-4788-aafd-64584dcde4a7